bitfinex/quotes_SOLUSD_20251116
["timestamp","ask_amount","ask_price","bid_price","bid_amount"]
[1763261656284,0.71,140.77,140.74,2.73468514]
[1763261657070,0.71,140.77,140.73,2.73468514]
[1763261657866,0.71,140.77,140.74,2.73468514]
[1763261658597,0.91,140.79,140.76,2.73468514]
[1763261659089,0.71,140.78,140.76,2.73468514]
[1763261659303,0.2,140.79,140.76,2.73468514]
[1763261659479,0.2,140.79,140.77,2.73468514]
[1763261659995,0.91,140.79,140.77,2.73468514]
[1763261660798,0.71,140.78,140.76,2.73468514]
[1763261660996,0.71,140.78,140.75,2.73468514]
[1763261661192,2.73468514,140.77,140.73,2.73468514]
[1763261661394,0.71,140.76,140.73,2.73468514]
[1763261661575,0.71,140.76,140.73,25.38588514]
[1763261662192,0.71,140.76,140.68,71.58882769]
[1763261662396,0.71,140.76,140.7,2.73468514]
[1763261662596,0.71,140.76,140.73,2.73468514]
[1763261663786,0.71,140.76,140.71,22.6512]
[1763261664096,3.44468514,140.76,140.71,25.38588514]
[1763261664307,0.2,140.79,140.71,25.38588514]
[1763261664308,3.44468514,140.75,140.71,2.73468514]
[1763261664790,0.71,140.74,140.72,2.73468514]
[1763261667206,0.2,140.79,140.72,2.73468514]
[1763261667380,0.91,140.79,140.75,2.73468514]
[1763261667700,0.91,140.79,140.76,2.73468514]
[1763261667892,0.2,140.79,140.77,2.73468514]
[1763261668092,0.2,140.79,140.73,22.6512]
[1763261668093,0.2,140.79,140.78,2.73468514]
[1763261670677,0.2,140.79,140.78,25.38588514]
[1763261675100,0.91,140.79,140.76,2.73468514]
[1763261675588,0.2,140.79,140.76,2.73468514]
[1763261675791,0.71,140.78,140.75,2.73468514]
[1763261676032,0.71,140.78,140.71,7.10663051]
[1763261676033,2.73468514,140.77,140.73,2.73468514]
[1763261676322,2.73468514,140.75,140.71,2.73468514]
[1763261676793,0.71,140.74,140.71,2.73468514]
[1763261679917,0.71,140.74,140.72,2.73468514]
[1763261680306,2.73468514,140.77,140.73,2.73468514]
[1763261680506,0.71,140.76,140.73,2.73468514]
[1763261681613,0.2,140.79,140.75,2.73468514]
[1763261681824,0.71,140.78,140.75,2.73468514]
[1763261682128,0.71,140.78,140.74,2.73468514]
[1763261682821,3.44468514,140.78,140.73,25.38588514]
[1763261683199,0.71,140.77,140.73,25.38588514]
[1763261683415,0.71,140.77,140.74,2.73468514]
[1763261688721,3.44468514,140.77,140.72,2.73468514]
[1763261689227,0.72,140.76,140.72,2.73468514]
[1763261690224,3.45468514,140.76,140.72,2.73468514]
[1763261690602,0.72,140.75,140.72,2.73468514]
[1763261691020,3.45468514,140.75,140.71,2.73468514]
[1763261691596,0.72,140.74,140.71,2.73468514]
[1763261692000,0.72,140.74,140.7,2.73468514]
[1763261692807,3.45468514,140.74,140.7,2.73468514]
[1763261693004,3.45468514,140.74,140.69,2.73468514]
[1763261693205,3.45468514,140.73,140.69,2.73468514]
[1763261693403,3.45468514,140.73,140.64,22.67459828]
[1763261693404,0.72,140.73,140.7,2.73468514]
[1763261693626,0.72,140.72,140.69,2.73468514]
[1763261693934,3.45468514,140.72,140.67,2.73468514]
[1763261694426,26.68171,140.74,140.65,2.73468514]
[1763261694427,3.45468514,140.71,140.65,2.73468514]
[1763261694628,2.73468514,140.7,140.65,2.73468514]
[1763261694832,3.45468514,140.7,140.65,2.73468514]
[1763261695005,0.72,140.69,140.65,2.73468514]
[1763261697737,0.72,140.69,140.66,2.73468514]
[1763261698440,16.89288231,140.74,140.68,2.73468514]
[1763261698654,0.72,140.71,140.68,2.73468514]
[1763261698935,0.72,140.71,140.69,2.73468514]
[1763261700419,0.72,140.71,140.68,2.73468514]
[1763261702135,13.24351283,140.71,140.63,22.6512]
[1763261702319,10.50882769,140.71,140.67,2.73468514]
[1763261702522,0.72,140.7,140.68,2.73468514]
[1763261702830,0.72,140.7,140.67,2.73468514]
[1763261703006,0.72,140.7,140.66,2.73468514]
[1763261703209,0.72,140.72,140.69,2.73468514]
[1763261703431,0.72,140.74,140.71,2.73468514]
[1763261703640,0.72,140.74,140.65,22.6512]
[1763261703804,0.72,140.74,140.65,32.44002769]
[1763261704016,0.72,140.74,140.72,2.73468514]
[1763261704651,0.72,140.74,140.73,2.73468514]
[1763261705315,0.72,140.76,140.73,2.73468514]
[1763261705510,9.98882769,140.79,140.75,2.73468514]
[1763261705728,0.72,140.77,140.73,22.6512]
[1763261705908,0.72,140.77,140.76,2.73468514]
[1763261707527,0.2,140.79,140.76,5.46937028]
[1763261707839,0.2,140.79,140.78,2.73468514]
[1763261709864,0.2,140.79,140.78,25.38588514]
[1763261710848,0.2,140.79,140.78,24.39798719]
[1763261713752,0.2,140.82,140.78,31.5012689]
[1763261714050,0.2,140.82,140.81,1.74678719]
[1763261716065,0.2,140.82,140.81,3.49357438]
[1763261716768,0.2,140.82,140.81,26.14477438]
[1763261717256,0.2,140.82,140.81,24.39798719]
[1763261717990,0.2,140.82,140.81,22.6512]
[1763261718176,0.9,140.82,140.81,1.74678719]
[1763261718465,0.9,140.82,140.76,6.98714876]
[1763261718664,0.7,140.81,140.79,1.74678719]
[1763261720655,0.7,140.81,140.77,22.6512]
[1763261720860,0.7,140.81,140.78,1.74678719]
[1763261721760,1.74678719,140.79,140.74,1.74678719]
[1763261721929,1.74678719,140.78,140.73,1.74678719]
[1763261722130,1.74678719,140.78,140.73,24.39798719]
[1763261722331,0.7,140.77,140.73,24.39798719]
[1763261722556,0.7,140.77,140.74,1.74678719]
[1763261722863,0.7,140.79,140.75,22.6512]
[1763261723027,0.7,140.78,140.76,1.74678719]
[1763261723842,2.44678719,140.78,140.73,22.6512]
[1763261724161,0.7,140.78,140.74,1.74678719]
[1763261724331,0.7,140.77,140.74,1.74678719]
[1763261724535,2.44678719,140.81,140.76,1.74678719]
[1763261724731,0.7,140.81,140.78,1.74678719]
[1763261725135,2.44678719,140.81,140.76,1.74678719]
[1763261725353,1.74678719,140.79,140.74,1.74678719]
[1763261725749,0.7,140.78,140.74,1.74678719]
[1763261726950,2.44678719,140.78,140.72,22.6512]
[1763261727143,1.74678719,140.77,140.73,1.74678719]
[1763261727342,2.44678719,140.77,140.73,1.74678719]
[1763261727552,0.7,140.76,140.73,1.74678719]
[1763261727943,0.7,140.76,140.72,1.74678719]
[1763261728136,2.44678719,140.76,140.72,1.74678719]
[1763261728654,0.7,140.75,140.72,1.74678719]
[1763261729063,0.7,140.75,140.71,24.39798719]
[1763261729377,2.44678719,140.75,140.7,22.6512]
[1763261729681,2.44678719,140.75,140.7,24.39798719]
[1763261729838,0.7,140.74,140.7,24.39798719]
[1763261730041,0.7,140.75,140.72,1.74678719]
[1763261732485,0.7,140.75,140.72,24.39798719]
[1763261733089,0.7,140.75,140.72,22.6512]
[1763261734474,0.7,140.75,140.7,24.39798719]
[1763261734675,2.44678719,140.75,140.7,24.39798719]
[1763261735186,2.44678719,140.74,140.68,1.74678719]
[1763261735660,2.44678719,140.73,140.7,22.6512]
[1763261736091,2.44678719,140.72,140.67,1.74678719]
[1763261736492,0.7,140.71,140.67,24.39798719]
[1763261736670,0.7,140.71,140.68,22.6512]
[1763261736871,0.7,140.71,140.68,24.39798719]
[1763261737276,2.44678719,140.74,140.68,24.39798719]
[1763261737476,1.74678719,140.74,140.69,1.74678719]
[1763261737795,0.7,140.73,140.69,1.74678719]
[1763261739127,0.7,140.75,140.71,24.39798719]
[1763261739490,0.7,140.75,140.72,1.74678719]
[1763261739690,0.7,140.75,140.71,22.6512]
[1763261739998,0.7,140.75,140.71,24.39798719]
[1763261741231,0.7,140.75,140.71,1.74678719]
[1763261741385,2.44678719,140.75,140.7,1.74678719]
[1763261741594,1.74678719,140.73,140.64,6.98714876]
[1763261741788,1.74678719,140.72,140.67,1.74678719]
[1763261742091,0.7,140.72,140.67,24.39798719]
[1763261742314,0.7,140.71,140.67,24.39798719]
[1763261742628,0.7,140.71,140.68,1.74678719]
[1763261743330,0.7,140.71,140.68,24.39798719]
[1763261744422,1.74678719,140.73,140.68,24.39798719]
[1763261744614,0.68,140.71,140.68,24.39798719]
[1763261745111,0.68,140.71,140.64,6.98714876]
[1763261745305,0.68,140.71,140.65,1.74678719]
[1763261745306,1.74678719,140.7,140.65,1.74678719]
[1763261745925,0.68,140.69,140.65,1.74678719]
[1763261746306,2.42678719,140.69,140.64,1.74678719]
[1763261746617,1.74678719,140.68,140.63,1.74678719]
[1763261746821,2.42678719,140.68,140.62,22.6512]
[1763261746995,0.68,140.67,140.63,1.74678719]
[1763261747195,0.68,140.67,140.64,1.74678719]
[1763261747394,0.68,140.67,140.63,1.74678719]
[1763261748421,2.42678719,140.67,140.62,1.74678719]
[1763261748821,2.42678719,140.66,140.61,24.39798719]
[1763261749125,0.68,140.65,140.61,24.39798719]
[1763261749430,0.68,140.65,140.6,1.74678719]
[1763261749431,2.42678719,140.65,140.6,1.74678719]
[1763261749619,2.42678719,140.65,140.61,1.74678719]
[1763261749928,0.68,140.64,140.61,1.74678719]
[1763261751623,0.68,140.68,140.63,1.74678719]
[1763261751928,2.42678719,140.68,140.64,1.74678719]
[1763261752114,2.42678719,140.68,140.63,24.39798719]
[1763261752420,0.68,140.67,140.63,24.39798719]
[1763261752723,2.42678719,140.67,140.63,24.39798719]
[1763261752911,2.42678719,140.67,140.63,22.6512]
[1763261753102,0.68,140.66,140.63,22.6512]
[1763261753711,0.68,140.66,140.63,24.39798719]
[1763261755032,0.68,140.66,140.64,1.74678719]
[1763261757732,0.68,140.66,140.63,24.39798719]
[1763261759430,0.68,140.68,140.65,24.39798719]
[1763261759631,0.68,140.68,140.66,1.74678719]
[1763261760730,0.68,140.69,140.66,1.74678719]
[1763261762201,1.74678719,140.67,140.63,24.39798719]
[1763261762406,1.74678719,140.67,140.62,1.74678719]
[1763261762637,2.42678719,140.66,140.61,1.74678719]
[1763261762819,0.68,140.65,140.61,1.74678719]
[1763261763125,0.68,140.65,140.62,1.74678719]
[1763261763924,1.74678719,140.69,140.64,1.74678719]
[1763261764114,2.42678719,140.69,140.65,1.74678719]
[1763261764309,22.6512,140.72,140.66,1.74678719]
[1763261764310,0.68,140.68,140.66,1.74678719]
[1763261769238,0.68,140.68,140.65,1.74678719]
[1763261770010,2.42678719,140.68,140.62,22.6512]
[1763261770240,2.42678719,140.68,140.64,1.74678719]
[1763261770438,0.68,140.67,140.64,1.74678719]
[1763261770614,0.68,140.69,140.66,1.74678719]
[1763261770932,0.68,140.69,140.66,2.73465222]
[1763261773221,0.68,140.69,140.65,2.73465222]
[1763261773429,3.41465222,140.69,140.65,2.73465222]
[1763261773628,3.41465222,140.69,140.64,2.73465222]
[1763261773820,0.67,140.68,140.64,2.73465222]
[1763261774128,0.67,140.68,140.65,2.73465222]
[1763261774325,2.73465222,140.71,140.66,2.73465222]
[1763261774530,0.67,140.69,140.66,2.73465222]
[1763261775740,2.73465222,140.72,140.67,2.73465222]
[1763261775945,0.67,140.7,140.67,2.73465222]
[1763261776542,0.67,140.73,140.68,2.73465222]
[1763261776743,0.67,140.73,140.7,2.73465222]
[1763261776934,0.67,140.73,140.69,2.73465222]
[1763261777134,2.73465222,140.72,140.68,22.6512]
[1763261777344,2.73465222,140.72,140.68,2.73465222]
[1763261777553,0.67,140.77,140.71,2.73465222]
[1763261777850,0.67,140.77,140.75,2.73465222]
[1763261778954,0.67,140.77,140.73,2.73465222]
[1763261779122,3.40465222,140.77,140.72,2.73465222]
[1763261779625,0.67,140.76,140.74,2.73465222]
[1763261781849,0.67,140.76,140.75,2.73465222]
[1763261782637,19.81465222,140.8,140.75,2.73465222]
[1763261782857,0.67,140.78,140.75,2.73465222]
[1763261783162,0.67,140.78,140.77,2.73465222]
[1763261783346,0.67,140.78,140.76,2.73465222]
[1763261783551,0.67,140.78,140.77,2.73465222]
[1763261783756,0.67,140.8,140.77,2.73465222]
[1763261784048,0.67,140.8,140.79,2.73465222]
[1763261785150,0.87,140.82,140.79,2.73465222]
[1763261785332,0.67,140.81,140.79,2.73465222]
[1763261786932,3.40465222,140.81,140.75,22.6512]
[1763261787132,2.73465222,140.78,140.73,2.73465222]
[1763261787663,0.67,140.77,140.73,2.73465222]
[1763261787957,0.67,140.77,140.74,2.73465222]
[1763261788130,0.67,140.77,140.75,2.73465222]
[1763261791846,0.67,140.77,140.73,25.38585222]
[1763261792051,0.67,140.77,140.74,2.73465222]
[1763261792254,3.40465222,140.77,140.72,2.73465222]
[1763261792561,0.67,140.76,140.72,2.73465222]
[1763261793234,3.40465222,140.76,140.72,2.73465222]
[1763261793440,3.40465222,140.76,140.71,2.73465222]
[1763261793661,2.73465222,140.74,140.68,22.6512]
[1763261793959,3.40465222,140.75,140.71,2.73465222]
[1763261794133,0.67,140.74,140.71,2.73465222]
[1763261794631,0.67,140.74,140.72,2.73465222]
[1763261795467,0.67,140.74,140.68,22.6512]
[1763261795640,0.67,140.74,140.7,2.73465222]
[1763261796163,0.67,140.74,140.71,2.73465222]
[1763261798177,0.67,140.74,140.7,22.6512]
[1763261798376,0.67,140.74,140.7,25.38585222]
[1763261800257,3.40465222,140.74,140.69,2.73465222]
[1763261800770,3.40465222,140.73,140.69,2.73465222]
[1763261801269,0.67,140.72,140.68,2.73465222]
[1763261801476,0.67,140.72,140.69,2.73465222]
[1763261801770,0.67,140.72,140.7,2.73465222]
[1763261802442,0.67,140.72,140.67,22.6512]
[1763261802647,0.67,140.72,140.7,2.73465222]
[1763261803376,0.7,140.74,140.71,2.73465222]
[1763261803672,2.73465222,140.77,140.72,2.73465222]
[1763261803873,3.43465222,140.73,140.68,2.73465222]
[1763261804079,2.73465222,140.72,140.68,2.73465222]
[1763261804253,0.7,140.71,140.68,2.73465222]
[1763261804451,0.7,140.72,140.7,2.73465222]
[1763261805260,2.73465222,140.76,140.71,2.73465222]
[1763261805449,2.73465222,140.75,140.71,2.73465222]
[1763261805652,3.43465222,140.75,140.71,2.73465222]
[1763261805854,0.7,140.74,140.71,2.73465222]
[1763261806577,0.7,140.74,140.72,2.73465222]
[1763261807185,0.7,140.74,140.68,22.6512]
[1763261807356,0.7,140.74,140.71,2.73465222]
[1763261808176,0.7,140.74,140.72,2.73465222]
[1763261808588,0.7,140.77,140.73,2.73465222]
[1763261808789,0.7,140.77,140.75,2.73465222]
[1763261808967,0.7,140.77,140.74,2.73465222]
[1763261809454,0.7,140.77,140.71,22.6512]
[1763261809455,3.43465222,140.77,140.72,2.73465222]
[1763261809889,3.43465222,140.76,140.7,22.6512]
[1763261810069,2.73465222,140.74,140.7,22.6512]
[1763261810253,2.73465222,140.74,140.7,25.38585222]
[1763261810585,0.7,140.73,140.7,25.38585222]
[1763261811053,2.73465222,140.72,140.63,14.07575749]
[1763261811253,2.73465222,140.72,140.67,2.73465222]
[1763261811467,0.7,140.71,140.67,25.38585222]
[1763261812566,0.7,140.71,140.69,2.73465222]
[1763261815286,0.7,140.73,140.7,2.73465222]
[1763261816211,0.7,140.73,140.71,2.73465222]
[1763261816869,0.7,140.75,140.72,2.73465222]
[1763261817070,0.7,140.75,140.71,2.73465222]
[1763261817483,3.43465222,140.75,140.7,2.73465222]
[1763261817872,0.7,140.74,140.7,2.73465222]
[1763261819490,0.7,140.74,140.71,2.73465222]
[1763261820274,0.7,140.74,140.72,2.73465222]
[1763261820479,106.93465222,140.77,140.72,2.73465222]
[1763261820699,0.7,140.75,140.72,2.73465222]
[1763261821496,0.7,140.75,140.71,2.73465222]
[1763261821681,0.7,140.75,140.72,2.73465222]
[1763261823481,0.7,140.75,140.73,2.73465222]
[1763261823708,21.36067499,140.81,140.74,2.73465222]
[1763261823709,0.7,140.79,140.74,2.73465222]
[1763261823894,3.43465222,140.8,140.76,2.73465222]
[1763261824213,0.7,140.8,140.76,2.73465222]
[1763261824425,0.7,140.79,140.76,2.73465222]
[1763261824709,0.7,140.8,140.77,2.73465222]
[1763261826624,0.7,140.8,140.76,2.73465222]
[1763261827521,0.7,140.8,140.77,2.73465222]
[1763261829696,0.7,140.8,140.78,2.73465222]
[1763261830212,0.9,140.82,140.79,2.73465222]
[1763261830827,0.7,140.81,140.79,2.73465222]
[1763261831599,0.7,140.81,140.78,2.73465222]
[1763261833011,0.7,140.81,140.78,1.74728907]
[1763261833317,0.7,140.81,140.79,1.74728907]
[1763261833903,0.7,140.81,140.78,1.74728907]
[1763261834101,0.7,140.81,140.79,1.74728907]
[1763261837210,0.7,140.81,140.78,1.74728907]
[1763261838025,0.7,140.81,140.79,1.74728907]
[1763261838725,0.2,140.82,140.79,1.74728907]
[1763261838928,0.89,140.82,140.8,1.74728907]
[1763261839442,0.69,140.81,140.8,1.74728907]
[1763261840033,0.2,140.82,140.8,1.74728907]
[1763261840204,0.89,140.82,140.8,22.6512]
[1763261840717,0.89,140.82,140.81,1.74728907]
[1763261841026,0.2,140.82,140.81,1.74728907]
[1763261842235,0.2,140.82,140.81,24.39848907]
[1763261842644,0.2,140.82,140.81,26.14577814]
[1763261842941,0.2,140.82,140.81,33.24754648]
[1763261843127,0.2,140.82,140.81,26.14577814]
[1763261843324,0.2,140.82,140.8,22.6512]
[1763261843648,0.2,140.82,140.81,24.39848907]
[1763261843958,0.2,140.82,140.81,3.49457814]
[1763261844244,0.2,140.82,140.81,24.39848907]
[1763261844454,0.2,140.82,140.81,29.75296834]
[1763261844647,0.2,140.82,140.81,24.39848907]
[1763261844830,0.2,140.82,140.81,1.74728907]
[1763261845621,0.2,140.82,140.81,24.39848907]
[1763261847158,0.2,140.82,140.81,1.74728907]
[1763261847320,0.2,140.82,140.81,33.24754648]
[1763261848748,0.2,140.82,140.81,43.03637417]
[1763261849948,0.2,140.82,140.81,24.39848907]
[1763261850132,0.2,140.82,140.81,1.74728907]
[1763261850332,0.2,140.82,140.81,24.39848907]
[1763261853261,0.2,140.82,140.81,22.6512]
[1763261853588,0.2,140.82,140.81,24.39848907]
[1763261854085,0.89,140.82,140.81,24.39848907]
[1763261854447,0.89,140.82,140.8,1.74728907]
[1763261854679,0.2,140.82,140.81,1.74728907]
[1763261855177,0.89,140.82,140.81,1.74728907]
[1763261855348,0.2,140.82,140.81,1.74728907]
[1763261856057,0.89,140.82,140.79,22.6512]
[1763261856255,0.89,140.82,140.81,1.74728907]
[1763261856451,0.89,140.82,140.8,24.39848907]
[1763261856772,0.2,140.82,140.81,1.74728907]
[1763261858174,0.89,140.82,140.81,1.74728907]
[1763261858378,0.89,140.82,140.81,24.39848907]
[1763261859264,0.89,140.82,140.81,1.74728907]
[1763261862869,0.2,140.82,140.81,1.74728907]
[1763261872076,0.2,140.82,140.79,25.49706105]
[1763261872269,0.2,140.82,140.81,1.74728907]
[1763261873565,0.2,140.82,140.79,25.49706105]
[1763261873775,0.2,140.82,140.81,1.74728907]
[1763261879107,0.2,140.82,140.8,22.6512]
[1763261879304,0.87,140.82,140.81,1.74728907]
[1763261881011,0.2,140.82,140.81,1.74728907]
[1763261881782,0.87,140.82,140.81,1.74728907]
[1763261882018,0.2,140.82,140.81,1.74728907]
[1763261882313,0.87,140.82,140.81,1.74728907]
[1763261884796,0.87,140.82,140.76,6.98915628]
[1763261885011,0.67,140.81,140.79,22.6512]
[1763261885184,0.2,140.82,140.79,22.6512]
[1763261885386,0.2,140.82,140.81,22.6512]
[1763261885990,0.87,140.82,140.81,22.6512]
[1763261886311,0.2,140.82,140.81,24.39848907]
[1763261888333,0.2,140.82,140.81,23.39848907]
[1763261890215,0.87,140.82,140.81,23.39848907]
[1763261890847,0.2,140.82,140.81,23.39848907]
[1763261891346,0.2,140.82,140.81,1.74728907]
[1763261892345,0.2,140.82,140.81,3.49457814]
[1763261892638,0.2,140.82,140.81,1.74728907]
[1763261893145,0.2,140.82,140.81,2.72772977]
[1763261895652,0.2,140.82,140.81,35.20842788]
[1763261895942,0.2,140.82,140.81,47.84271173]
[1763261898308,0.2,140.84,140.81,47.84271173]
[1763261898525,0.2,140.84,140.83,25.37892977]
[1763261898725,0.2,140.84,140.83,2.72772977]
[1763261899124,0.91,140.84,140.83,2.72772977]
[1763261899917,0.2,140.84,140.83,2.72772977]
[1763261900230,0.2,140.84,140.83,9.82848955]
[1763261900735,0.2,140.84,140.83,12.67354093]
[1763261901032,0.2,140.84,140.83,35.32474093]
[1763261901242,0.2,140.84,140.83,12.67354093]
[1763261901811,0.2,140.87,140.86,22.6512]
[1763261902028,0.2,140.87,140.86,25.37892977]
[1763261902614,0.2,140.87,140.86,102.53993167]
[1763261902909,0.2,140.89,140.87,9.78882769]
[1763261903126,0.2,140.89,140.88,12.55369917]
[1763261903312,0.2,140.89,140.88,22.34252686]
[1763261904244,2.98542461,140.94,140.91,22.6512]
[1763261904616,2.98542461,140.94,140.93,2.72772977]
[1763261905043,2.27542461,140.94,140.93,2.72772977]
[1763261905337,2.27542461,140.94,140.93,24.37892977]
[1763261905839,2.98542461,140.94,140.93,28.22195901]
[1763261906043,2.98542461,140.94,140.93,25.37892977]
[1763261906835,2.98542461,140.94,140.93,2.72772977]
[1763261907842,2.98542461,140.94,140.93,22.6512]
[1763261908326,2.98542461,140.94,140.92,25.37892977]
[1763261908527,2.27542461,140.94,140.92,28.36435438]
[1763261908746,0.71,140.93,140.92,28.36435438]
[1763261909243,0.71,140.93,140.92,90.16435438]
[1763261909839,0.71,140.93,140.92,87.43662461]
[1763261910045,0.71,140.93,140.92,84.4512]
[1763261911550,2.98542461,140.94,140.92,87.17892977]
[1763261912918,2.98542461,140.94,140.92,94.2750832]
[1763261913442,2.27542461,140.94,140.92,97.26050781]
[1763261913643,2.27542461,140.94,140.93,2.72772977]
[1763261914648,2.98542461,140.94,140.92,97.26051589]
[1763261915639,2.98542461,140.94,140.92,94.53278612]
[1763261915827,2.27542461,140.94,140.92,97.26051589]
[1763261916526,2.27542461,140.94,140.92,94.53278612]
[1763261916723,2.98542461,140.94,140.93,2.72772977]
[1763261916929,2.27542461,140.94,140.93,2.72772977]
[1763261917428,2.98542461,140.94,140.93,22.6512]
[1763261917747,2.98542461,140.94,140.93,25.37892977]
[1763261918051,2.27542461,140.94,140.93,2.72772977]
[1763261918347,2.27542461,140.94,140.93,25.37892977]
[1763261918553,2.98542461,140.94,140.93,22.6512]
[1763261919149,2.27542461,140.94,140.93,42.26347874]
[1763261921155,2.27542461,140.94,140.93,25.37892977]
[1763261921354,2.98542461,140.94,140.93,22.6512]
[1763261922161,2.98542461,140.94,140.93,25.37892977]
[1763261922555,2.98542461,140.94,140.93,22.6512]
[1763261923638,2.98542461,140.94,140.92,2.72772977]
[1763261923639,2.98542461,140.94,140.9,2.98542461]
[1763261923834,0.71,140.93,140.9,5.71315438]
[1763261924039,0.71,140.93,140.92,22.6512]
[1763261927847,0.71,140.93,140.91,22.6512]
[1763261928743,2.72772977,140.92,140.85,16.88857919]
[1763261928938,0.71,140.91,140.8,30.78445171]
[1763261929238,2.72772977,140.9,140.85,2.72772977]
[1763261929437,2.72772977,140.9,140.86,22.6512]
[1763261929658,0.71,140.89,140.86,22.6512]
[1763261930850,0.71,140.89,140.86,2.72772977]
[1763261931053,0.71,140.91,140.88,25.37892977]
[1763261931258,0.71,140.91,140.89,2.72772977]
[1763261931458,0.71,140.91,140.9,2.72772977]
[1763261931755,0.71,140.93,140.92,22.6512]
[1763261932076,0.71,140.93,140.92,25.37892977]
[1763261932363,2.27542461,140.94,140.92,25.37892977]
[1763261932364,2.98542461,140.94,140.92,25.37892977]
[1763261932665,0.71,140.93,140.92,25.37892977]
[1763261933166,0.71,140.93,140.92,22.6512]
[1763261934668,0.71,140.93,140.92,25.37892977]
[1763261935650,2.27542461,140.94,140.92,25.37892977]
[1763261935849,2.98542461,140.94,140.93,2.72772977]
[1763261936370,2.98542461,140.94,140.92,25.37892977]
[1763261936742,0.71,140.93,140.92,22.6512]
[1763261939370,2.27542461,140.94,140.92,25.37892977]
[1763261939572,0.71,140.93,140.92,25.37892977]
[1763261940549,0.71,140.93,140.92,22.6512]
[1763261941573,0.71,140.93,140.89,2.72772977]
[1763261941875,0.71,140.93,140.9,22.6512]
[1763261942176,0.71,140.93,140.9,25.37892977]
[1763261944164,3.43772977,140.93,140.9,22.6512]
[1763261944365,2.72772977,140.92,140.87,25.37892977]
[1763261944561,0.71,140.91,140.88,22.6512]
[1763261944967,0.71,140.91,140.87,2.72772977]
[1763261945165,2.72772977,140.89,140.78,7.10328171]
[1763261945480,0.71,140.91,140.86,25.37892977]
[1763261945481,3.43772977,140.91,140.86,25.37892977]
[1763261945661,0.71,140.9,140.86,25.37892977]
[1763261947081,0.71,140.9,140.87,22.6512]
[1763261947582,3.43772977,140.9,140.87,22.6512]
[1763261948188,0.71,140.9,140.88,22.6512]
[1763261948389,0.71,140.89,140.88,22.6512]
[1763261948594,0.71,140.9,140.88,25.37892977]
[1763261948885,3.43772977,140.93,140.89,22.6512]
[1763261949263,2.27542461,140.94,140.92,2.72772977]
[1763261949461,2.27542461,140.94,140.89,29.74877407]
[1763261949462,2.27542461,140.94,140.93,35.16775746]
[1763261949884,2.27542461,140.94,140.93,37.89548723]
[1763261950066,0.2,140.97,140.96,22.6512]
[1763261950267,0.2,140.97,140.96,35.16775746]
[1763261950476,0.2,141.08,140.96,32.44002769]
[1763261950690,0.2,141.08,141.02,2.72772977]
[1763261950691,2.72772977,141.06,141.02,2.72772977]
[1763261950897,2.72772977,141.06,141.0,22.6512]
[1763261951098,2.72772977,141.06,141.01,2.72772977]
[1763261951707,2.72772977,141.07,141.02,2.72772977]
[1763261952080,2.72772977,141.07,141.0,22.6512]
[1763261952283,2.72772977,141.06,141.02,22.6512]
[1763261952684,0.71,141.05,141.02,25.37892977]
[1763261953206,0.71,141.05,141.02,2.72772977]
[1763261954517,2.72772977,141.03,140.96,20.91653525]
[1763261954686,2.72772977,141.03,140.99,22.6512]
[1763261954883,1.74191548,141.04,140.99,24.39311548]
[1763261955098,0.71,141.05,140.99,24.39311548]
[1763261955299,1.74191548,141.04,141.0,1.74191548]
[1763261955698,0.67,141.03,141.0,1.74191548]
[1763261956002,0.67,141.03,140.99,24.39311548]
[1763261956201,2.41191548,141.03,140.99,24.39311548]
[1763261956408,2.41191548,141.03,140.99,22.6512]
[1763261956607,0.67,141.02,140.99,22.6512]
[1763261957809,1.74191548,141.01,140.96,1.74191548]
[1763261958117,1.74191548,141.01,140.97,22.6512]
[1763261958413,0.67,141.0,140.97,22.6512]
[1763261958616,0.67,141.0,140.97,24.39311548]